[Event "Spring Chess Classic B 2024"]
[Site "Saint Louis"]
[Date "2024.04.13"]
[Round "2.1"]
[White "Raja Harshit"]
[Black "Van Foreest, Lucas"]
[Result "1/2-1/2"]
[ECO "C67"]
[WhiteElo "2458"]
[BlackElo "2512"]
[Annotator "ChessBase"]
[PlyCount "71"]
[EventDate "2024.04.11"]
[EventCountry "USA"]
[SourceTitle "playchess.com"]
[Source "ChessBase"]
[SourceQuality "1"]
[TimeControl "7200+30"]

1. e4 {[%emt 0:00:23]} e5 {[%emt 0:00:24]} 2. Nf3 {[%emt 0:00:12]} Nc6 {[%emt 0:00:04]} 3. Bb5 {[%emt 0:00:13]} Nf6 {[%emt 0:00:23]} 4. O-O {[%emt 0:03:25]} Nxe4 {[%emt 0:00:19]} 5. Re1 {[%emt 0:00:34]} Nd6 {[%emt 0:00:05]} 6. Nxe5 {[%emt 0:00:10]} Be7 {[%emt 0:00:04]} 7. Bf1 {[%emt 0:00:11]} Nxe5 {[%emt 0:00:03]} 8. Rxe5 {[%emt 0:00:10]} O-O {[%emt 0:00:05]} 9. Nc3 {[%emt 0:00:39]} Ne8 {[%emt 0:00:40]} 10. Nd5 {[%emt 0:00:46]} Bd6 {[%emt 0:00:08]} 11. Re1 {[%emt 0:00:15]} c6 {[%emt 0:00:13]} 12. Ne3 {[%emt 0:00:17]} Bc7 {[%emt 0:00:22]} 13. Nf5 {[%emt 0:01:33]} d5 {[%emt 0:02:25]} 14. Ne7+ {[%emt 0:00:05]} Kh8 {[%emt 0:01:04]} 15. Nxc8 {[%emt 0:00:08]} Qxc8 {[%emt 0:00:10]} 16. Qf3 {[%emt 0:04:22]} Nf6 {[%emt 0:08:46]} 17. d3 {[%emt 0:08:49]} Qd7 {[%emt 0:00:32]} 18. g3 {[%emt 0:11:13]} Rae8 {[%emt 0:15:18]} 19. Be3 {[%emt 0:03:46]} Bb6 {[%emt 0:03:05]} 20. Bxb6 {[%emt 0:09:35]} axb6 {[%emt 0:01:05]} 21. Qf4 {[%emt 0:01:55]} Kg8 {[%emt 0:05:25]} 22. a4 {[%emt 0:04:04]} h6 {[%emt 0:01:32]} 23. h4 {[%emt 0:04:19]} Kh8 {[%emt 0:03:27]} 24. Bg2 {[%emt 0:02:05]} Kg8 {[%emt 0:00:16]} 25. Bf1 {[%emt 0:01:10]} Kh8 {[%emt 0:00:05]} 26. Bg2 {[%emt 0:00:15]} Kg8 {[%emt 0:00:07]} 27. Bf3 {[%emt 0:00:03]} Qd8 {[%emt 0:02:40]} 28. Kg2 {[%emt 0:03:20]} Rxe1 {[%emt 0:00:34]} 29. Rxe1 {[%emt 0:00:05]} Re8 {[%emt 0:00:15]} 30. Ra1 {[%emt 0:04:29]} Qe7 {[%emt 0:00:49]} 31. c3 {[%emt 0:01:38]} Nd7 {[%emt 0:01:50]} 32. d4 {[%emt 0:02:28]} Nf6 {[%emt 0:00:31]} 33. Ra3 {[%emt 0:05:23]} Qd8 {[%emt 0:01:36]} 34. Ra1 {[%emt 0:04:27]} Qe7 {[%emt 0:00:05]} 35. Ra3 {[%emt 0:04:10]} Qd8 {[%emt 0:00:04]} 36. Ra1 {[%emt 0:00:05]} 1/2-1/2

[Event "Spring Chess Classic B 2024"]
[Site "Saint Louis"]
[Date "2024.04.13"]
[Round "2.2"]
[White "Stearman, Josiah"]
[Black "Chandra, Akshat"]
[Result "1-0"]
[ECO "D35"]
[WhiteElo "2462"]
[BlackElo "2489"]
[Annotator "ChessBase"]
[PlyCount "67"]
[EventDate "2024.04.11"]
[EventCountry "USA"]
[SourceTitle "playchess.com"]
[Source "ChessBase"]
[SourceQuality "1"]
[TimeControl "7200+30"]

1. d4 {[%emt 0:00:05]} d5 {[%emt 0:00:45]} 2. c4 {[%emt 0:00:18]} e6 {[%emt 0:00:03]} 3. Nc3 {[%emt 0:00:28]} Nf6 {[%emt 0:00:27]} 4. cxd5 {[%emt 0:00:21]} exd5 {[%emt 0:00:05]} 5. Bg5 {[%emt 0:00:05]} Bb4 {[%emt 0:00:48]} 6. e3 {[%emt 0:05:00]} h6 {[%emt 0:00:09]} 7. Bh4 {[%emt 0:01:47]} g5 {[%emt 0:00:18]} 8. Bg3 {[%emt 0:00:07]} Ne4 {[%emt 0:00:06]} 9. Qb3 {[%emt 0:02:47]} Bxc3+ {[%emt 0:37:33]} 10. bxc3 {[%emt 0:00:38]} h5 {[%emt 0:00:05]} 11. f3 {[%emt 0:09:42]} Nxg3 {[%emt 0:00:17]} 12. hxg3 {[%emt 0:00:02]} Qd6 {[%emt 0:25:04]} 13. Kf2 {[%emt 0:00:55]} Nd7 {[%emt 0:00:30]} 14. c4 {[%emt 0:02:11]} c6 {[%emt 0:01:20]} 15. cxd5 {[%emt 0:02:42]} cxd5 {[%emt 0:00:06]} 16. Bb5 {[%emt 0:06:45]} Kf8 {[%emt 0:02:01]} 17. Bxd7 {[%emt 0:03:16]} Bxd7 {[%emt 0:00:33]} 18. Ne2 {[%emt 0:00:32]} Kg7 {[%emt 0:01:55]} 19. Rac1 {[%emt 0:00:15]} Bc6 {[%emt 0:09:26]} 20. Rc3 {[%emt 0:05:26]} Qd7 {[%emt 0:06:44]} 21. Nc1 {[%emt 0:07:09]} Bb5 {[%emt 0:12:12]} 22. Qb1 {[%emt 0:09:56]} Rh6 {[%emt 0:07:41]} 23. Nb3 {[%emt 0:03:47]} b6 {[%emt 0:04:11]} 24. Nd2 {[%emt 0:00:33]} a6 {[%emt 0:03:44]} 25. Qc2 {[%emt 0:03:20]} Rah8 {[%emt 0:03:39]} 26. Rc7 {[%emt 0:03:37]} Qd6 {[%emt 0:01:17]} 27. Ra7 {[%emt 0:01:17]} Qb8 {[%emt 0:08:14]} 28. Re7 {[%emt 0:04:21]} Qd6 {[%emt 0:02:54]} 29. Ra7 {[%emt 0:00:05]} Qb8 {[%emt 0:00:06]} 30. Re7 {[%emt 0:00:04]} Qd6 {[%emt 0:00:10]} 31. Qc7 {[%emt 0:03:33]} Qxc7 {[%emt 0:01:17]} 32. Rxc7 {[%emt 0:00:02]} Rc6 {[%emt 0:01:40]} 33. Rxc6 {[%emt 0:02:12]} Bxc6 {[%emt 0:00:02]} 34. Rc1 {[%emt 0:00:05]} 1-0

[Event "Spring Chess Classic B 2024"]
[Site "Saint Louis"]
[Date "2024.04.13"]
[Round "2.4"]
[White "Woodward, Andy"]
[Black "Kevlishvili, Robby"]
[Result "1/2-1/2"]
[ECO "A47"]
[WhiteElo "2515"]
[BlackElo "2524"]
[Annotator "TA"]
[PlyCount "59"]
[EventDate "2024.04.11"]
[EventCountry "USA"]
[SourceTitle "playchess.com"]
[Source "ChessBase"]
[SourceQuality "1"]
[TimeControl "7200+30"]

{[%evp 15,59,10,15,14,16,10,5,8,17,8,10,8,8,0,14,0,0,-9,0,0,12,0,0,0,0,0,15,17,24,0,11,0,0,0,0,0,0,0,0,0,0,-4,-6,-7,-9,-16]} 1. d4 {[%emt 0:00:05]} Nf6 {[%emt 0:00:08]} 2. Nf3 {[%emt 0:00:11]} e6 {[%emt 0:00:11]} 3. Bf4 {[%emt 0:00:10]} b6 {[%emt 0:02:56]} 4. e3 {[%emt 0:00:17]} Bb7 {[%emt 0:00:18]} 5. Nbd2 {[%emt 0:00:21]} Be7 {[%emt 0:00:34]} 6. h3 {[%emt 0:00:18]} O-O {[%emt 0:00:59]} 7. Bd3 {[%emt 0:00:46]} d5 {[%emt 0:01:16]} 8. c3 {[%emt 0:01:35]} Nbd7 {[%emt 0:04:43]} 9. Qb1 {[%emt 0:08:32]} Bd6 {[%emt 0:05:47]} 10. O-O {[%emt 0:14:00]} Qe7 {[%emt 0:11:03]} 11. Ne5 {[%emt 0:03:58]} g6 {[%emt 0:01:02]} 12. Re1 {[%emt 0:06:58]} Nh5 {[%emt 0:06:00]} 13. Nxd7 {[%emt 0:06:43]} Qxd7 {[%emt 0:00:17]} 14. Bh6 {[%emt 0:06:34]} Rfe8 {[%emt 0:01:32]} 15. e4 {[%emt 0:05:19]} e5 {[%emt 0:09:09]} 16. Nf3 {[%emt 0:02:32]} dxe4 {[%emt 0:16:41]} 17. Bxe4 {[%emt 0:00:38]} Bxe4 {[%emt 0:00:17]} 18. Qxe4 {[%emt 0:00:53]} exd4 {[%emt 0:00:08]} 19. Qxd4 {[%emt 0:00:25]} Qf5 {[%emt 0:04:21]} 20. Qc4 {[%emt 0:13:23]} Qc5 {[%emt 0:08:19]} 21. Qa4 {[%emt 0:04:46]} b5 {[%emt 0:00:36]} 22. Qd4 {[%emt 0:03:57]} a6 {[%emt 0:02:58] The position is equal.} 23. Qd2 {[%emt 0:04:38]} (23. Qxc5 {simplifies} Bxc5 24. a4 Bd6 25. axb5 axb5 26. Rxa8 Rxa8 27. Nd4) 23... Qf5 {[%emt 0:06:37]} 24. Qg5 {[%emt 0:19:28]} Qxg5 {[%emt 0:13:50]} 25. Bxg5 {[%emt 0:00:22]} f6 {[%emt 0:00:10]} 26. g4 {[%emt 0:03:48]} fxg5 {[%emt 0:01:44]} 27. gxh5 {[%emt 0:00:11]} h6 {[%emt 0:00:32]} 28. hxg6 {[%emt 0:00:10]} Kg7 {[%emt 0:00:19]} 29. Nd4 {[%emt 0:00:23]} Kxg6 {[%emt 0:00:53]} 30. Nc6 {[%emt 0:00:22] Not much happened in this game.   Weighted Error Value: White=0.05 (flawless) /Black=0.03 (flawless) .  OK:         	White=7     	Black=10} 1/2-1/2

[Event "Spring Chess Classic B 2024"]
[Site "Saint Louis"]
[Date "2024.04.13"]
[Round "2.5"]
[White "Batsuren, Dambasuren"]
[Black "Ali Marandi, Cemil Can"]
[Result "1-0"]
[ECO "D60"]
[WhiteElo "2515"]
[BlackElo "2516"]
[Annotator "ChessBase"]
[PlyCount "36"]
[EventDate "2024.04.11"]
[EventCountry "USA"]
[SourceTitle "playchess.com"]
[Source "ChessBase"]
[SourceQuality "1"]
[TimeControl "7200+30"]

1. d4 {[%emt 0:00:32]} d5 {[%emt 0:00:07]} 2. c4 {[%emt 0:00:07]} c6 {[%emt 0:00:05]} 3. Nf3 {[%emt 0:00:27]} Nf6 {[%emt 0:00:07]} 4. Qb3 {[%emt 0:00:34]} e6 {[%emt 0:00:47]} 5. Bg5 {[%emt 0:01:05]} Be7 {[%emt 0:01:43]} 6. e3 {[%emt 0:02:30]} O-O {[%emt 0:01:00]} 7. Nc3 {[%emt 0:07:01]} Nbd7 {[%emt 0:02:02]} 8. Rd1 {[%emt 0:18:55]} a6 {[%emt 0:07:16]} 9. a4 {[%emt 0:12:39]} Re8 {[%emt 0:14:17]} 10. Be2 {[%emt 0:05:25]} dxc4 {[%emt 0:03:57]} 11. Qxc4 {[%emt 0:08:25]} b5 {[%emt 0:12:32]} 12. Qxc6 {[%emt 0:09:01]} Ra7 {[%emt 0:07:39]} 13. Bxf6 {[%emt 0:04:39]} Nxf6 {[%emt 0:02:02]} 14. axb5 {[%emt 0:04:12]} Rc7 {[%emt 0:14:06]} 15. Qb6 {[%emt 0:05:26]} Bb4 {[%emt 0:03:10]} 16. Qb8 {[%emt 0:28:15]} axb5 {[%emt 0:21:22]} 17. Nd2 {[%emt 0:07:43]} Bxc3 {[%emt 0:08:56]} 18. bxc3 {[%emt 0:00:06]} Nd5 {[%emt 0:00:05]} 1-0

[Event "Spring Chess Classic B 2024"]
[Site "Saint Louis"]
[Date "2024.04.13"]
[Round "3.1"]
[White "Ali Marandi, Cemil Can"]
[Black "Raja Harshit"]
[Result "1/2-1/2"]
[ECO "C67"]
[WhiteElo "2516"]
[BlackElo "2458"]
[Annotator "TA"]
[PlyCount "76"]
[EventDate "2024.04.11"]
[EventCountry "USA"]
[SourceTitle "playchess.com"]
[Source "ChessBase"]
[SourceQuality "1"]
[TimeControl "7200+30"]

{[%evp 9,76,20,30,-21,0,-8,-7,-10,-12,-18,13,-20,-3,-1,-18,-12,-11,-12,-11,-14,-10,-13,-11,-13,-11,-9,-3,-8,0,0,0,0,0,0,0,0,0,0,0,0,0,0,0,0,0,0,0,0,0,0,0,0,0,0,0,0,0,0,0,0,0,0,0,0,0,0,0,0,0]} 1. e4 {[%emt 0:00:04]} e5 {[%emt 0:00:33]} 2. Nf3 {[%emt 0:00:27]} Nc6 {[%emt 0:00:09]} 3. Bb5 {[%emt 0:01:00]} Nf6 {[%emt 0:00:13]} 4. O-O {[%emt 0:02:26]} Nxe4 {[%emt 0:00:14]} 5. d4 {[%emt 0:00:10]} Nd6 {[%emt 0:00:13]} 6. Ba4 {[%emt 0:00:11]} (6. Bxc6 $142 dxc6 7. dxe5) 6... e4 {[%emt 0:00:46] The position is equal.} 7. Ne5 {[%emt 0:00:21]} Be7 {[%emt 0:00:05]} 8. Nc3 {[%emt 0:00:40]} O-O {[%emt 0:00:08]} 9. Re1 {[%emt 0:00:17]} Bf6 {[%emt 0:00:42]} 10. Nxe4 {[%emt 0:04:01]} Nxe4 {[%emt 0:01:41]} 11. Rxe4 {[%emt 0:01:05] [#]} Nxd4 $1 {[%emt 0:01:13]} 12. Qxd4 {[%emt 0:09:11][%cal Oa4b3]} d6 {[%emt 0:00:24][%cal Oc8f5]} 13. Bf4 {[%emt 0:00:36][%cal Od4c3]} Bf5 {[%emt 0:09:05] White must now prevent ...b5.} 14. Re2 {[%emt 0:07:32][%cal Od4c3]} dxe5 {[%emt 0:01:51]} 15. Qxd8 {[%emt 0:00:17]} Raxd8 {[%emt 0:01:02]} (15... Rfxd8 {simplifies} 16. Bxe5 Bxe5 17. Rxe5 Be6) 16. Bxe5 {[%emt 0:00:27]} Bxe5 {[%emt 0:00:15]} 17. Rxe5 {[%emt 0:00:21]} Be6 {[%emt 0:01:09]} 18. Re2 {[%emt 0:08:15]} c6 {[%emt 0:04:22]} 19. Bb3 {[%emt 0:01:21]} Bxb3 {[%emt 0:00:09]} 20. axb3 $11 {[%emt 0:00:07][%cal Oh2h4][%mdl 4096] Endgame. KRR-KRR} Rd7 {[%emt 0:00:18]} 21. g3 {[%emt 0:01:47]} (21. Rxa7 $2 {gets mated.} Rd1+) 21... a6 {[%emt 0:00:45]} 22. Rae1 {[%emt 0:01:12]} g6 {[%emt 0:00:08]} 23. b4 {[%emt 0:03:29]} Kg7 {[%emt 0:00:08]} 24. c3 {[%emt 0:01:05]} Rfd8 {[%emt 0:00:06]} 25. Kg2 {[%emt 0:00:27]} Rd2 {[%emt 0:00:24]} 26. Rxd2 {[%emt 0:01:51]} Rxd2 {[%emt 0:00:04] KR-KR} 27. Re7 {[%emt 0:00:06]} Rxb2 {[%emt 0:00:09]} 28. Rxb7 {[%emt 0:00:04]} Rc2 {[%emt 0:00:11]} 29. Rb6 {[%emt 0:00:08][%csl LRa6,LRc6]} Rxc3 {[%emt 0:00:06]} 30. Rxa6 {[%emt 0:00:06]} c5 {[%emt 0:00:50]} 31. bxc5 {[%emt 0:00:07]} Rxc5 {[%emt 0:00:05]} 32. h4 {[%emt 0:00:09]} h5 {[%emt 0:00:03]} 33. Ra3 {[%emt 0:00:12]} Rb5 {[%emt 0:00:04]} 34. Rc3 {[%emt 0:00:14]} Rd5 {[%emt 0:00:05]} 35. Ra3 {[%emt 0:00:07]} Rf5 {[%emt 0:00:04]} 36. Rc3 {[%emt 0:00:09]} Rd5 {[%emt 0:00:04]} 37. Ra3 {[%emt 0:00:07]} Rf5 {[%emt 0:00:05]} 38. Rc3 {[%emt 0:00:04]} Rd5 {[%emt 0:00:03] An interesting draw.   Weighted Error Value: White=0.06 (flawless) /Black=0.03 (flawless) .  Inaccurate:     	White=1     	Black=1      OK:         	White=17    	Black=14     Best:        	---       	Black=1} 1/2-1/2

[Event "Spring Chess Classic B 2024"]
[Site "Saint Louis"]
[Date "2024.04.14"]
[Round "3.2"]
[White "Kevlishvili, Robby"]
[Black "Batsuren, Dambasuren"]
[Result "1-0"]
[ECO "C70"]
[WhiteElo "2524"]
[BlackElo "2515"]
[Annotator "RC"]
[PlyCount "121"]
[EventDate "2024.04.11"]
[EventCountry "USA"]
[SourceTitle "playchess.com"]
[Source "ChessBase"]
[SourceQuality "1"]
[TimeControl "7200+30"]

1. e4 {[%emt 0:00:05]} e5 {[%emt 0:00:11]} 2. Nf3 {[%emt 0:00:06]} Nc6 {[%emt 0:00:06]} 3. Bb5 {[%emt 0:00:05]} a6 {[%emt 0:00:53]} 4. Ba4 {[%emt 0:00:04]} Nge7 {[%emt 0:01:03]} 5. c3 {[%emt 0:00:48]} Ng6 {[%emt 0:00:29]} 6. h4 {[%emt 0:00:35]} Be7 {[%emt 0:00:07]} 7. d4 {[%emt 0:00:35]} Nxh4 {[%emt 0:14:31]} 8. Nxh4 {[%emt 0:00:09]} Bxh4 {[%emt 0:00:08]} 9. d5 {[%emt 0:00:55]} b5 {[%emt 0:07:10]} 10. Bc2 {[%emt 0:04:12]} Na5 {[%emt 0:00:35]} 11. Qh5 {[%emt 0:03:48]} Bf6 {[%emt 0:00:45]} 12. b4 {[%emt 0:12:02]} Nc4 {[%emt 0:01:45]} 13. Bd3 {[%emt 0:13:06]} d6 {[%emt 0:08:53]} 14. a4 {[%emt 0:08:40]} Bb7 {[%emt 0:07:49]} 15. Nd2 {[%emt 0:09:28]} Nxd2 {[%emt 0:04:00]} 16. Bxd2 {[%emt 0:00:13]} c6 {[%emt 0:00:26]} 17. dxc6 {[%emt 0:03:15]} Bxc6 {[%emt 0:00:06]} 18. Qe2 {[%emt 0:00:21]} Qb8 {[%emt 0:13:03]} 19. f3 {[%emt 0:12:50]} bxa4 {[%emt 0:08:35]} 20. Kf2 {[%emt 0:08:44]} h6 {[%emt 0:09:17]} 21. g4 {[%emt 0:01:02]} Ke7 {[%emt 0:01:50]} 22. Kg2 {[%emt 0:00:40]} Qb7 {[%emt 0:03:09]} 23. c4 {[%emt 0:00:58]} Rhc8 {[%emt 0:04:29]} 24. Rhd1 {[%emt 0:06:11]} Kf8 {[%emt 0:06:10]} 25. Be3 {[%emt 0:05:33]} Bd7 {[%emt 0:02:58]} 26. Qd2 {[%emt 0:01:03]} Rab8 {[%emt 0:06:12]} 27. Rab1 {[%emt 0:04:22]} Be6 {[%emt 0:02:20]} 28. Rdc1 {[%emt 0:00:23]} Qd7 {[%emt 0:03:57]} 29. Be2 {[%emt 0:01:09]} Be7 {[%emt 0:07:37]} 30. Ra1 {[%emt 0:01:26]} Rc7 {[%emt 0:01:58]} 31. Kg3 {[%emt 0:06:41]} Rcb7 {[%emt 0:06:57]} 32. Rcb1 {[%emt 0:01:19]} Kg8 {[%emt 0:01:05]} 33. Qc3 {[%emt 0:01:23]} Rc7 {[%emt 0:01:19]} 34. Qc2 {[%emt 0:00:52]} Qc8 {[%emt 0:03:36]} 35. Rxa4 {[%emt 0:01:27]} d5 {[%emt 0:03:58]} 36. exd5 {[%emt 0:00:18]} Bxd5 {[%emt 0:00:15]} 37. c5 {[%emt 0:00:08]} Bb7 {[%emt 0:00:46]} 38. Rba1 {[%emt 0:01:02]} Rc6 {[%emt 0:00:07]} 39. Qf5 {[%emt 0:00:42]} Qc7 {[%emt 0:00:47]} 40. Rd1 {[%emt 0:07:27]} Re6 {[%emt 0:00:22]} 41. Ra2 {[%emt 0:03:23]} g6 {[%emt 0:00:22]} 42. Qb1 {[%emt 0:00:46]} Rf6 {[%emt 0:00:40]} 43. Kg2 {[%emt 0:02:48]} Qc8 {[%emt 0:00:09]} 44. Kg3 {[%emt 0:00:11]} Qc7 {[%emt 0:00:53]} 45. Kg2 {[%emt 0:00:04]} Bc6 {[%emt 0:00:40]} 46. Rf1 {[%emt 0:01:02]} Qc8 {[%emt 0:00:27]} 47. Kg3 {[%emt 0:00:14]} Bd5 {[%emt 0:00:33]} 48. Rd2 {[%emt 0:00:29]} Ba8 {[%emt 0:00:31]} 49. Qd1 {[%emt 0:01:43]} Rxb4 {[%emt 0:00:25]} 50. Rd7 {[%emt 0:00:10]} Rb7 {[%emt 0:00:29]} 51. Rxb7 {[%emt 0:00:34]} Bxb7 {[%emt 0:00:11]} 52. Qb3 {[%emt 0:00:43]} Qc7 {[%emt 0:00:42]} 53. Rb1 {[%emt 0:00:13]} Bc6 {[%emt 0:00:42]} 54. Qb6 {[%emt 0:00:26]} Qd7 {[%emt 0:00:30]} 55. Qb8+ {[%emt 0:00:25]} Qe8 {[%emt 0:00:31]} 56. Qxe8+ {[%emt 0:00:06]} Bxe8 {[%emt 0:00:02]} 57. Rb8 {[%emt 0:00:06]} Kg7 {[%emt 0:00:56]} 58. Rxe8 {[%emt 0:00:07]} Re6 {[%emt 0:00:02]} 59. c6 {[%emt 0:00:51]} e4 {[%emt 0:00:36]} 60. Bd4+ {[%emt 0:00:46]} f6 {[%emt 0:00:04]} 61. f4 {[%emt 0:00:23]} 1-0

[Event "Spring Chess Classic B 2024"]
[Site "Saint Louis"]
[Date "2024.04.13"]
[Round "3.2"]
[White "Kevlishvili, Robby"]
[Black "Batsuren, Dambasuren"]
[Result "1-0"]
[ECO "D35"]
[WhiteElo "2524"]
[BlackElo "2515"]
[Annotator "RC"]
[PlyCount "111"]
[EventDate "2024.04.11"]
[EventCountry "USA"]
[SourceTitle "playchess.com"]
[Source "ChessBase"]
[SourceQuality "1"]
[TimeControl "7200+30"]

1. d4 {[%emt 0:00:05]} d5 {[%emt 0:00:45]} 2. c4 {[%emt 0:00:18]} e6 {[%emt 0:00:03]} 3. Nc3 {[%emt 0:00:28]} Nf6 {[%emt 0:00:27]} 4. cxd5 {[%emt 0:00:21]} exd5 {[%emt 0:00:05]} 5. Bg5 {[%emt 0:00:05]} Bb4 {[%emt 0:00:48]} 6. e3 {[%emt 0:05:00]} h6 {[%emt 0:00:09]} 7. Bh4 {[%emt 0:01:47]} g5 {[%emt 0:00:18]} 8. Bg3 {[%emt 0:00:07]} Ne4 {[%emt 0:00:06]} 9. Qb3 {[%emt 0:02:47]} Bxc3+ {[%emt 0:37:33]} 10. bxc3 {[%emt 0:00:38]} h5 {[%emt 0:00:05]} 11. f3 {[%emt 0:09:42]} Nxg3 {[%emt 0:00:17]} 12. hxg3 {[%emt 0:00:02]} Qd6 {[%emt 0:25:04]} 13. Kf2 {[%emt 0:00:55]} Nd7 {[%emt 0:00:30]} 14. c4 {[%emt 0:02:11]} c6 {[%emt 0:01:20]} 15. cxd5 {[%emt 0:02:42]} cxd5 {[%emt 0:00:06]} 16. Bb5 {[%emt 0:06:45]} Kf8 {[%emt 0:02:01]} 17. Bxd7 {[%emt 0:03:16]} Bxd7 {[%emt 0:00:33]} 18. Ne2 {[%emt 0:00:32]} Kg7 {[%emt 0:01:55]} 19. Rac1 {[%emt 0:00:15]} Bc6 {[%emt 0:09:26]} 20. Rc3 {[%emt 0:05:26]} Qd7 {[%emt 0:06:44]} 21. Nc1 {[%emt 0:07:09]} Bb5 {[%emt 0:12:12]} 22. Qb1 {[%emt 0:09:56]} Rh6 {[%emt 0:07:41]} 23. Nb3 {[%emt 0:03:47]} b6 {[%emt 0:04:11]} 24. Nd2 {[%emt 0:00:33]} a6 {[%emt 0:03:44]} 25. Qc2 {[%emt 0:03:20]} Rah8 {[%emt 0:03:39]} 26. Rc7 {[%emt 0:03:37]} Qd6 {[%emt 0:01:17]} 27. Ra7 {[%emt 0:01:17]} Qb8 {[%emt 0:08:14]} 28. Re7 {[%emt 0:04:21]} Qd6 {[%emt 0:02:54]} 29. Ra7 {[%emt 0:00:05]} Qb8 {[%emt 0:00:06]} 30. Re7 {[%emt 0:00:04]} Qd6 {[%emt 0:00:10]} 31. Qc7 {[%emt 0:03:33]} Qxc7 {[%emt 0:01:17]} 32. Rxc7 {[%emt 0:00:02]} Rc6 {[%emt 0:01:40]} 33. Rxc6 {[%emt 0:02:12]} Bxc6 {[%emt 0:00:02]} 34. Rc1 {[%emt 0:00:05]} Bb5 {[%emt 0:00:49]} 35. e4 {[%emt 0:00:26]} dxe4 {[%emt 0:00:31]} 36. fxe4 {[%emt 0:01:04]} h4 {[%emt 0:00:23]} 37. Nf3 {[%emt 0:00:31]} hxg3+ {[%emt 0:00:24]} 38. Kxg3 {[%emt 0:00:01]} Re8 {[%emt 0:01:18]} 39. e5 {[%emt 0:01:19]} Bd7 {[%emt 0:00:39]} 40. Nxg5 {[%emt 0:00:29]} Rc8 {[%emt 0:00:32]} 41. Rxc8 {[%emt 0:02:14]} Bxc8 {[%emt 0:00:01]} 42. Ne4 {[%emt 0:00:31]} b5 {[%emt 0:00:59]} 43. d5 {[%emt 0:00:53]} Kf8 {[%emt 0:00:23]} 44. Kf4 {[%emt 0:00:38]} b4 {[%emt 0:00:30]} 45. Nc5 {[%emt 0:00:13]} a5 {[%emt 0:00:26]} 46. Kg5 {[%emt 0:03:59]} Ke7 {[%emt 0:00:15]} 47. g4 {[%emt 0:07:15]} Ke8 {[%emt 0:00:56]} 48. Kf4 {[%emt 0:01:10]} Kf8 {[%emt 0:00:31]} 49. g5 {[%emt 0:02:06]} Bh3 {[%emt 0:00:08]} 50. g6 {[%emt 0:02:13]} Bg2 {[%emt 0:00:42]} 51. d6 {[%emt 0:00:42]} fxg6 {[%emt 0:00:19]} 52. e6 {[%emt 0:00:05]} a4 {[%emt 0:00:48]} 53. Ke5 {[%emt 0:00:47]} b3 {[%emt 0:00:29]} 54. Kf6 {[%emt 0:00:10]} Ke8 {[%emt 0:00:14]} 55. d7+ {[%emt 0:00:06]} Kd8 {[%emt 0:00:02]} 56. e7+ {[%emt 0:00:05]} 1-0

[Event "Spring Chess Classic B 2024"]
[Site "Saint Louis"]
[Date "2024.04.14"]
[Round "3.3"]
[White "Budisavljevic, Luka"]
[Black "Woodward, Andy"]
[Result "1/2-1/2"]
[ECO "A16"]
[WhiteElo "2483"]
[BlackElo "2515"]
[Annotator "RC"]
[PlyCount "83"]
[EventDate "2024.04.11"]
[EventCountry "USA"]
[SourceTitle "playchess.com"]
[Source "ChessBase"]
[SourceQuality "1"]
[TimeControl "7200+30"]

1. Nf3 {[%emt 0:00:23]} Nf6 {[%emt 0:00:07]} 2. c4 {[%emt 0:00:14]} g6 {[%emt 0:00:11]} 3. Nc3 {[%emt 0:00:10]} d5 {[%emt 0:00:22]} 4. cxd5 {[%emt 0:00:10]} Nxd5 {[%emt 0:00:09]} 5. h4 {[%emt 0:00:55]} Bg7 {[%emt 0:00:14]} 6. h5 {[%emt 0:01:41]} Nc6 {[%emt 0:00:36]} 7. g3 {[%emt 0:00:50]} e5 {[%emt 0:01:10]} 8. h6 {[%emt 0:02:50]} Bf6 {[%emt 0:01:02]} 9. Bg2 {[%emt 0:00:37]} Nxc3 {[%emt 0:04:13]} 10. dxc3 {[%emt 0:03:00]} Qxd1+ {[%emt 0:01:14]} 11. Kxd1 {[%emt 0:00:03]} Bf5 {[%emt 0:01:30]} 12. Bg5 {[%emt 0:04:13]} Be7 {[%emt 0:03:34]} 13. Bxe7 {[%emt 0:13:26]} Kxe7 {[%emt 0:00:37]} 14. Kc1 {[%emt 0:01:55]} Be4 {[%emt 0:07:02]} 15. Nh4 {[%emt 0:04:02]} Bxg2 {[%emt 0:00:41]} 16. Nxg2 {[%emt 0:00:03]} f5 {[%emt 0:06:35]} 17. Kc2 {[%emt 0:01:33]} Rad8 {[%emt 0:01:15]} 18. b4 {[%emt 0:03:01]} Rd7 {[%emt 0:04:02]} 19. Rad1 {[%emt 0:00:14]} Rxd1 {[%emt 0:04:30]} 20. Rxd1 {[%emt 0:00:03]} Rd8 {[%emt 0:00:13]} 21. Re1 {[%emt 0:02:22]} g5 {[%emt 0:11:15]} 22. f4 {[%emt 0:14:55]} gxf4 {[%emt 0:10:49]} 23. gxf4 {[%emt 0:00:04]} Rg8 {[%emt 0:00:17]} 24. Nh4 {[%emt 0:12:10]} Ke6 {[%emt 0:14:57]} 25. b5 {[%emt 0:03:17]} Nd8 {[%emt 0:04:39]} 26. fxe5 {[%emt 0:07:01]} Kxe5 {[%emt 0:05:16]} 27. Rf1 {[%emt 0:06:41]} f4 {[%emt 0:06:42]} 28. Rd1 {[%emt 0:01:30]} Ke6 {[%emt 0:06:44]} 29. Rd4 {[%emt 0:00:02]} Nf7 {[%emt 0:06:20]} 30. Re4+ {[%emt 0:00:20]} Kd7 {[%emt 0:00:56]} 31. Nf5 {[%emt 0:07:16]} Re8 {[%emt 0:00:36]} 32. Rd4+ {[%emt 0:01:06]} Kc8 {[%emt 0:02:48]} 33. Kd2 {[%emt 0:00:40]} Re6 {[%emt 0:01:20]} 34. Rxf4 {[%emt 0:00:17]} Nd6 {[%emt 0:01:54]} 35. Kd3 {[%emt 0:02:42]} Nxb5 {[%emt 0:03:47]} 36. Rg4 {[%emt 0:03:35]} Nd6 {[%emt 0:00:56]} 37. Rg8+ {[%emt 0:00:36]} Kd7 {[%emt 0:00:07]} 38. Rg7+ {[%emt 0:00:04]} Kd8 {[%emt 0:00:14]} 39. Rg8+ {[%emt 0:06:41]} Kd7 {[%emt 0:01:52]} 40. Rg7+ {[%emt 0:00:02]} Kd8 {[%emt 0:00:09]} 41. Rg8+ {[%emt 0:00:34]} Kd7 {[%emt 0:00:06]} 42. Rg7+ {[%emt 0:00:05]} 1/2-1/2